bitfinex/quotes_ETHUSD_20220202
["timestamp","ask_amount","ask_price","bid_price","bid_amount"]
[1643764616158,0.1804,2771.7,2770.6,0.88333623]
[1643764616159,0.1804,2771.7,2770.7,0.18012]
[1643764616360,0.36047964,2772.1,2770.8,0.88333623]
[1643764616361,0.1804,2772.0,2770.8,0.88333623]
[1643764616560,0.1804,2772.0,2770.8,1.18333623]
[1643764616760,1.2038,2772.2,2770.8,1.18333623]
[1643764616761,0.1804,2772.1,2770.8,1.18333623]
[1643764617463,0.92653709,2772.0,2770.8,1.18333623]
[1643764617661,0.1804,2771.9,2770.8,1.18333623]
[1643764617862,0.61862,2771.9,2770.8,0.3]
[1643764618310,0.7343729,2771.5,2770.7,2.36345623]
[1643764618515,0.7343729,2771.5,2770.7,1.48012]
[1643764618711,0.7343729,2771.5,2770.7,0.48012]
[1643764618910,0.7343729,2771.5,2770.7,0.18012]
[1643764619513,0.1804,2771.8,2770.7,0.18012]
[1643764620715,0.75300059,2771.4,2770.6,0.88333623]
[1643764620916,0.75300059,2771.4,2770.5,1.06373623]
[1643764621814,0.75300059,2771.4,2770.6,0.88333623]
[1643764622057,0.1804,2771.8,2770.5,2.36373623]
[1643764622259,0.1804,2771.8,2770.6,0.88333623]
[1643764622461,0.1804,2771.8,2770.5,2.36373623]
[1643764622462,1.52521848,2771.7,2770.5,2.36373623]
[1643764622862,1.52521848,2771.7,2770.5,1.4804]
[1643764623065,0.85557845,2771.2,2770.5,0.1804]
[1643764623564,0.85557845,2771.2,2770.3,1.36373623]
[1643764623965,0.33775226,2771.0,2770.3,1.06373623]
[1643764624167,0.33775226,2771.0,2770.1,1.7530638]
[1643764624366,0.33775226,2771.0,2770.1,1.06345623]
[1643764624565,0.78121142,2770.7,2770.1,1.06345623]
[1643764624766,0.78121142,2770.7,2770.1,0.88333623]
[1643764624966,0.78121142,2770.7,2770.0,0.88333623]
[1643764625570,0.74233336,2770.1,2770.0,0.81704585]
[1643764625824,1.49213336,2770.1,2769.8,7.47]
[1643764626020,1.49213336,2770.1,2769.7,0.1804]
[1643764626021,1.97253336,2770.1,2769.7,0.1804]
[1643764626819,2.09583621,2770.0,2769.7,0.1804]
[1643764627023,0.1804,2769.9,2769.2,0.1]
[1643764627221,0.44798214,2769.5,2769.2,0.1]
[1643764627424,1.22818214,2769.5,2769.2,0.1]
[1643764628124,1.52818214,2769.5,2769.0,7.47]
[1643764628325,1.52818214,2769.5,2768.3,1.1083619]
[1643764628326,0.1804,2769.4,2768.3,1.1083619]
[1643764628532,0.43609862,2768.5,2768.3,1.1083619]
[1643764628726,0.52,2769.1,2768.3,1.1083619]
[1643764628932,0.23022,2769.0,2768.3,1.1083619]
[1643764629126,0.94387872,2768.9,2768.3,1.1083619]
[1643764629326,0.1804,2768.8,2768.3,1.1083619]
[1643764629568,0.7004,2768.8,2768.3,1.1083619]
[1643764629772,0.36229505,2768.7,2768.3,1.1083619]
[1643764629970,2.3951263,2768.6,2768.3,1.1083619]
[1643764630169,2.6951263,2768.6,2768.3,1.1083619]
[1643764630669,0.1806,2768.6,2768.3,1.1083619]
[1643764631071,0.1806,2769.0,2768.3,1.1083619]
[1643764631270,0.1804,2769.1,2768.3,1.4083619]
[1643764631972,1.05584923,2769.1,2768.3,1.4083619]
[1643764632874,0.87544923,2769.1,2768.3,1.4083619]
[1643764634723,0.1804,2769.3,2768.3,1.8884819]
[1643764634925,1.1874,2769.4,2768.3,1.8884819]
[1643764638279,0.78026508,2769.1,2768.3,1.8884819]
[1643764640382,1.1874,2769.4,2768.3,1.8884819]
[1643764641426,1.1874,2769.4,2768.3,2.7913419]
[1643764641625,1.1874,2769.4,2768.4,1.0]
[1643764642230,1.1874,2769.4,2768.3,1.1083619]
[1643764642231,0.9498833,2769.0,2768.3,1.1083619]
[1643764642430,1.2997033,2769.0,2768.3,1.1083619]
[1643764642630,0.1804,2768.9,2768.3,1.1083619]
[1643764643229,0.67282271,2768.5,2768.3,1.1083619]
[1643764643833,0.97282271,2768.5,2768.3,1.1083619]
[1643764644670,4.5806,2768.4,2768.3,1.1083619]
[1643764644874,0.1806,2768.4,2768.3,1.1083619]
[1643764647978,1.15342271,2768.5,2768.3,1.1083619]
[1643764648213,0.67282271,2768.5,2768.3,1.1083619]
[1643764648412,0.1806,2768.9,2768.3,1.1083619]
[1643764648612,0.1804,2769.0,2768.3,1.1083619]
[1643764649420,0.62568768,2769.0,2768.3,1.1083619]
[1643764649623,0.79769614,2768.6,2768.3,1.1083619]
[1643764650919,0.1804,2769.0,2768.3,1.1083619]
[1643764651131,0.1804,2769.0,2768.4,2.17493033]
[1643764651324,3.7091,2769.6,2768.3,1.1083619]
[1643764651325,0.1804,2769.3,2768.3,1.1083619]
[1643764652174,0.17916148,2769.3,2768.3,1.1083619]
[1643764652363,0.17916148,2769.3,2768.3,3.31007883]
[1643764652564,1.93130083,2769.4,2768.3,1.1083619]
[1643764652764,1.1874,2769.4,2768.3,1.1083619]
[1643764652964,1.1874,2769.4,2768.3,3.57408068]
[1643764653170,0.1804,2769.5,2768.4,1.4227125]
[1643764653374,0.13819997,2769.8,2768.8,0.01279552]
[1643764653770,0.1804,2770.0,2768.8,0.01279552]
[1643764654170,0.1804,2770.0,2768.8,0.19319552]
[1643764655272,0.1804,2770.0,2768.8,0.01279552]
[1643764656640,0.1804,2770.0,2768.8,21.80291552]
[1643764656841,0.1804,2770.6,2769.0,0.9026]
[1643764657040,0.1804,2770.6,2768.9,3.70734685]
[1643764657041,0.1804,2770.6,2769.1,2.92233332]
[1643764657245,0.1804,2770.6,2769.2,1.52]
[1643764657448,0.1804,2770.6,2769.2,1.52619259]
[1643764657645,0.70611771,2770.5,2769.2,1.82619259]
[1643764657942,0.1804,2770.4,2769.2,2.12619259]
[1643764658142,0.1804,2770.4,2769.2,3.02868259]
[1643764658342,0.1804,2770.4,2769.3,0.18012]
[1643764658545,0.1804,2770.4,2769.4,0.52]
[1643764658546,0.1304,2770.4,2769.4,0.52]
[1643764658747,0.1804,2770.6,2769.5,2.90614319]
[1643764658948,0.15,2771.0,2769.6,0.52958164]
[1643764658949,0.1804,2770.9,2769.6,0.52958164]
[1643764659145,0.15,2771.0,2769.7,2.79987057]
[1643764659345,0.15,2771.0,2769.8,1.52544894]
[1643764659570,0.15,2771.0,2769.9,2.32331986]
[1643764659773,0.3304,2771.0,2769.9,2.32331986]
[1643764659975,0.3304,2771.0,2769.8,2.00012]
[1643764660170,0.3304,2771.0,2769.8,1.00012]
[1643764660370,0.3304,2771.0,2769.8,2.00012]
[1643764661573,1.52593875,2770.9,2769.7,0.1804]
[1643764661771,0.1804,2770.8,2769.7,0.1804]
[1643764661972,1.52593875,2770.7,2769.7,0.1804]
[1643764662370,1.01563812,2770.6,2769.7,0.1804]
[1643764662773,0.1804,2770.6,2769.7,0.1804]
[1643764662972,0.1804,2770.9,2769.6,2.4010828]
[1643764664023,0.88549362,2770.9,2769.6,2.4010828]
[1643764664320,1.52586264,2770.8,2769.6,0.18012]
[1643764664523,0.1804,2770.7,2769.6,0.18012]
[1643764664923,0.1804,2770.8,2769.6,0.18012]
[1643764665329,1.52597834,2770.7,2769.5,0.01248322]
[1643764665528,0.34843723,2770.4,2769.4,4.9756]
[1643764665724,0.34843723,2770.4,2769.3,1.2341]
[1643764665925,0.1804,2770.3,2769.2,0.25]
[1643764666123,0.1804,2770.3,2769.1,15.47522]
[1643764666124,0.1804,2770.3,2769.1,15.94987079]
[1643764666324,0.1804,2770.3,2769.1,15.47522]
[1643764666523,1.2258,2770.8,2769.1,15.47522]
[1643764666524,0.91040269,2770.2,2769.1,15.47522]
[1643764666724,0.91040269,2770.2,2769.1,10.88602]
[1643764666962,0.91040269,2770.2,2769.1,11.0059]
[1643764667162,0.91040269,2770.2,2769.1,3.5359]
[1643764668963,0.91040269,2770.2,2769.1,3.3555]
[1643764670376,0.91040269,2770.2,2769.2,0.18012]
[1643764670571,0.91040269,2770.2,2769.2,1.18012]
[1643764670819,0.1804,2770.4,2769.2,3.32990984]
[1643764671020,0.1804,2770.7,2769.2,3.32990984]
[1643764671319,1.52598865,2770.6,2769.2,3.32990984]
[1643764671521,0.1804,2770.5,2769.2,4.23238984]
[1643764671719,1.52598865,2770.4,2769.3,0.3]
[1643764671926,1.52598865,2770.4,2769.4,2.41697689]
[1643764672123,0.3,2770.6,2769.4,2.41697689]
[1643764672320,1.52593037,2770.5,2769.4,2.41697689]
[1643764672519,0.96235352,2770.7,2769.4,2.41697689]
[1643764672719,1.82591032,2770.6,2769.4,2.41697689]
[1643764672923,0.3,2770.6,2769.4,2.41697689]
[1643764673320,1.26235352,2770.7,2769.4,2.41697689]
[1643764673520,1.52589839,2770.6,2769.4,2.41697689]
[1643764679521,1.52589839,2770.6,2769.4,3.71697689]
[1643764679735,0.1804,2770.7,2769.6,1.80469]
[1643764679927,1.2258,2770.8,2769.7,2.16299411]
[1643764680125,1.52584791,2770.7,2769.7,2.45438322]
[1643764680424,1.52584791,2770.7,2769.7,3.45438322]
[1643764680630,1.52584791,2770.7,2769.8,0.18012]
[1643764680825,1.52584791,2770.7,2769.8,1.18012]
[1643764681229,1.52584791,2770.7,2769.9,2.10513142]
[1643764681630,1.52584791,2770.7,2769.9,0.3]
[1643764681829,1.52584791,2770.7,2769.7,3.50756633]
[1643764682071,1.52584791,2770.7,2769.7,4.02756633]
[1643764682272,1.2258,2770.8,2769.8,0.18012]
[1643764683673,0.15,2771.0,2769.8,0.18012]
[1643764683973,0.15,2771.0,2770.0,0.01233804]
[1643764684176,0.15,2771.0,2770.1,0.88052]
[1643764684374,0.15,2771.0,2770.2,2.26810565]
[1643764684576,0.15,2771.0,2770.3,0.70012]
[1643764684778,0.15,2771.0,2770.5,0.3]
[1643764684976,0.15,2771.0,2770.7,0.90197]
[1643764685176,0.15,2771.0,2770.8,2.10884254]
[1643764685376,0.15,2771.0,2770.8,2.40884254]
[1643764685579,0.15,2771.0,2770.8,3.40884254]
[1643764685824,0.15,2771.0,2770.8,1.3]
[1643764686219,0.15,2771.0,2770.9,9.09094234]
[1643764686720,0.15,2771.0,2770.9,3.34094234]
[1643764686920,0.15,2771.0,2770.9,1.18012]
[1643764687822,0.15,2771.0,2770.9,0.18012]
[1643764688526,0.15,2771.0,2770.9,4.08012]
[1643764688721,0.15,2771.0,2770.9,5.38012]
[1643764689325,1.85779276,2772.2,2770.9,5.38012]
[1643764689326,0.1804,2771.8,2771.0,6.75]
[1643764689580,1.1833,2772.2,2771.0,7.65188]
[1643764689581,0.1804,2772.1,2771.0,7.65188]
[1643764689774,1.1833,2772.2,2771.0,7.65188]
[1643764689775,1.3637,2772.2,2771.1,3.90670202]
[1643764690175,1.3637,2772.2,2771.1,4.20670202]
[1643764690376,0.72952622,2772.1,2771.1,4.20670202]
[1643764690573,0.72952622,2772.1,2771.2,0.18012]
[1643764690976,0.72952622,2772.1,2771.1,1.82]
[1643764691185,0.72952622,2772.1,2771.0,1.2624]
[1643764691186,1.02952622,2772.1,2771.0,0.1804]
[1643764691381,0.1804,2772.0,2771.0,0.1804]
[1643764691576,0.1804,2772.0,2770.6,4.7138]
[1643764691577,5.35,2771.9,2770.6,4.7138]
[1643764691780,0.1804,2771.8,2770.6,4.7138]
[1643764691976,0.1804,2771.8,2770.7,3.25523654]
[1643764692179,0.67449276,2772.0,2770.8,21.27012]
[1643764692180,0.1804,2772.0,2770.8,21.27012]
[1643764692376,1.1833,2772.2,2770.9,3.43677947]
[1643764692377,0.1804,2772.1,2770.9,3.43677947]
[1643764692576,1.3637,2772.2,2770.9,3.43677947]
[1643764692975,1.3637,2772.2,2771.0,0.18012]
[1643764693219,1.3637,2772.2,2771.1,0.90186]
[1643764693620,1.3637,2772.2,2771.2,2.18940918]
[1643764693826,1.3637,2772.2,2771.2,3.18940918]
[1643764694018,0.1804,2772.2,2771.2,3.18940918]
[1643764694417,0.1804,2772.2,2771.2,3.36952918]
[1643764694626,0.1804,2772.2,2771.5,21.09]
[1643764694827,0.27639994,2772.7,2771.7,0.90165]
[1643764694828,0.1802,2772.7,2771.7,0.90165]
[1643764695024,0.1802,2772.9,2771.8,2.90833872]
[1643764695225,1.89909276,2773.1,2771.8,2.90833872]
[1643764695226,0.1802,2773.0,2771.8,2.90833872]
[1643764695524,0.76089851,2772.9,2771.8,2.90833872]
[1643764696729,0.76089851,2772.9,2771.8,0.52]
[1643764697176,0.76089851,2772.9,2771.7,0.1802]
[1643764697177,0.71902874,2772.2,2771.7,0.1802]
[1643764697376,0.71902874,2772.2,2771.4,0.18012]
[1643764697574,0.71902874,2772.2,2770.8,3.99839248]
[1643764697575,1.13486425,2772.2,2771.1,0.1802]
[1643764697775,1.13486425,2772.2,2771.0,9.289]
[1643764697976,1.13486425,2772.2,2771.0,8.8586]
[1643764697977,0.71902874,2772.2,2771.0,8.8586]
[1643764698183,0.71902874,2772.2,2771.0,4.907]
[1643764698381,0.1804,2772.3,2771.1,2.13934821]
[1643764698584,5.07993,2772.8,2771.2,0.18012]
[1643764698585,0.1802,2772.6,2771.2,0.18012]
[1643764698783,4.85249276,2772.8,2771.2,2.00012]
[1643764698784,0.1802,2772.7,2771.2,2.00012]
[1643764698989,0.1802,2772.7,2771.3,2.48222716]
[1643764699183,0.1802,2772.7,2771.4,0.3]
[1643764699583,0.78152726,2772.5,2771.4,0.3]
[1643764699783,0.78152726,2772.5,2771.4,2.20174]
[1643764700384,0.78152726,2772.5,2771.4,1.3]
[1643764701222,0.78152726,2772.5,2771.4,1.48012]
[1643764701924,0.78152726,2772.5,2771.4,1.3]
[1643764702324,1.52523411,2772.4,2771.4,1.3]
[1643764703125,1.52523411,2772.4,2771.4,0.3]
[1643764703324,1.52523411,2772.4,2771.4,1.3]
[1643764703526,1.52523411,2772.4,2771.5,2.11237719]
[1643764703726,1.52523411,2772.4,2771.4,1.3]
[1643764703931,1.52523411,2772.4,2771.4,0.3]
[1643764704133,1.52523411,2772.4,2771.4,1.3]
[1643764704773,1.52523411,2772.4,2771.5,0.52]
[1643764707377,0.44676533,2772.0,2771.5,0.52]
[1643764707585,0.44676533,2772.0,2771.2,0.1802]
[1643764707586,1.52523411,2771.9,2771.2,0.1802]
[1643764708420,0.79411597,2771.5,2771.2,0.1802]
[1643764708719,0.44676533,2772.0,2770.8,0.1804]
[1643764708720,0.74676533,2772.0,2770.8,0.1804]
[1643764708920,1.20211,2772.0,2770.8,0.1804]
[1643764709124,1.52546883,2771.9,2770.8,0.1804]
[1643764709925,0.7194294,2771.7,2770.8,0.36052]
[1643764710126,0.7194294,2771.7,2770.8,1.36052]
[1643764710327,0.7194294,2771.7,2770.8,0.1804]
[1643764712770,0.7194294,2771.7,2770.7,4.63862]
[1643764712970,0.7194294,2771.7,2770.8,1.0]
[1643764713470,0.7194294,2771.7,2770.7,4.1585]
[1643764713671,0.7194294,2771.7,2770.8,1.0]
[1643764714171,0.7194294,2771.7,2770.8,1.18012]
[1643764714776,0.7194294,2771.7,2770.8,3.29239025]
[1643764714978,0.7194294,2771.7,2770.8,1.18012]
[1643764715376,0.7194294,2771.7,2770.8,0.18012]
[1643764715577,0.7194294,2771.7,2770.7,4.4585]
[1643764716026,0.71827082,2771.7,2770.8,2.11650374]
[1643764716230,0.71827082,2771.7,2770.7,4.4585]
[1643764716623,0.71827082,2771.7,2770.8,2.11839164]
[1643764716825,2.42755543,2771.6,2770.7,4.4585]
[1643764717027,0.3,2771.5,2770.7,4.1585]
[1643764717236,0.3,2771.5,2770.6,0.1804]
[1643764717237,1.52552721,2771.4,2770.6,0.1804]
[1643764717528,1.70592721,2771.4,2770.6,0.1804]
[1643764717730,3.07758951,2771.3,2770.6,0.1804]
[1643764717931,3.07758951,2771.3,2769.3,2.7517877]
[1643764717932,0.79183392,2770.2,2769.3,2.7517877]
[1643764718128,0.79183392,2770.2,2769.3,3.68012]
[1643764718338,0.79183392,2770.2,2769.3,3.5]
[1643764718339,2.04181332,2770.1,2769.3,3.5]
[1643764718528,1.51203392,2770.2,2769.1,7.47]
[1643764718727,3.56811569,2770.1,2769.1,7.47]
[1643764718927,2.04181332,2770.1,2769.1,7.47]
[1643764719128,0.41466424,2769.9,2769.1,7.47]
[1643764719325,0.83949277,2769.7,2769.1,7.47]
[1643764722980,0.9027,2769.8,2769.1,7.47]
[1643764723246,1.0829572,2770.3,2769.2,0.70012]
[1643764723445,0.90256,2770.4,2769.2,1.70012]
[1643764723642,0.90256,2770.4,2769.3,0.11044292]
[1643764723843,0.90256,2770.4,2769.3,0.63044292]
[1643764724046,0.8875297,2770.0,2769.3,0.52]
[1643764724244,0.8875297,2770.0,2769.3,0.63044292]
[1643764725353,0.41310804,2769.9,2768.9,1.23724292]
[1643764725562,0.41310804,2769.9,2768.9,0.11044292]
[1643764725563,0.41462666,2769.0,2768.9,0.11044292]
[1643764725761,1.19572666,2769.0,2768.3,1.1083619]
[1643764725955,2.10192658,2768.9,2768.3,1.1083619]
[1643764726157,0.93210483,2768.8,2768.3,1.1083619]
[1643764726353,2.09068214,2768.7,2768.3,1.1083619]
[1643764726553,0.93210483,2768.8,2768.3,1.1083619]
[1643764727170,1.83522433,2768.8,2768.3,1.1083619]
[1643764727373,3.64152433,2768.8,2768.3,1.1083619]
[1643764729881,2.59298166,2768.7,2768.3,1.1083619]
[1643764730081,3.46198166,2768.7,2768.3,1.1083619]
[1643764730579,0.90323,2768.6,2768.3,1.1083619]
[1643764731029,0.90314,2768.6,2768.3,1.1083619]
[1643764731630,0.23022,2768.7,2768.3,1.1083619]
[1643764731631,0.1804,2768.7,2768.3,1.1083619]
[1643764731836,0.1806,2769.0,2768.4,2.20684068]
[1643764732030,2.7092863,2769.5,2768.4,2.20684068]
[1643764732031,1.08329,2769.3,2768.4,2.20684068]
[1643764732427,1.08329,2769.3,2768.3,1.1083619]
[1643764732628,0.74851823,2768.9,2768.3,1.1083619]
[1643764732834,0.74851823,2768.9,2768.3,1.4083619]
[1643764734230,0.37260132,2768.8,2768.3,1.4083619]
[1643764734675,0.74851823,2768.9,2768.3,1.4083619]
[1643764734877,0.74851823,2768.9,2768.3,1.1083619]
[1643764738327,0.1804,2769.1,2768.4,2.28379141]
[1643764738525,1.8057884,2769.6,2768.4,2.28379141]
[1643764738526,1.80568,2769.6,2768.5,0.52]
[1643764738726,0.1804,2769.7,2768.6,2.3063485]
[1643764738924,2.3171,2770.1,2768.6,2.3063485]
[1643764738925,0.1804,2770.0,2768.6,2.20940576]
[1643764739125,0.1804,2770.0,2768.6,7.93746957]
[1643764739328,0.85286635,2769.4,2768.6,7.93746957]
[1643764739530,0.85286635,2769.4,2768.6,3.16156957]
[1643764740333,0.85286635,2769.4,2768.5,0.52]
[1643764741136,0.85286635,2769.4,2768.5,1.52]
[1643764741137,0.85202163,2769.4,2768.5,1.52]
[1643764741337,0.1804,2769.9,2768.5,1.52]
[1643764741536,0.1804,2769.9,2768.7,0.01293574]
[1643764741972,0.90281,2769.4,2768.7,0.01293574]
[1643764742275,0.93674291,2769.0,2768.4,1.0]
[1643764742477,0.93674291,2769.0,2768.3,2.1083619]
[1643764742677,0.93674291,2769.0,2768.3,1.1083619]
[1643764742873,0.93674291,2769.0,2768.3,2.1083619]
[1643764743072,0.93674291,2769.0,2768.3,1.1083619]
[1643764743277,0.93674291,2769.0,2768.3,2.1083619]
[1643764743474,0.93674291,2769.0,2768.3,1.1083619]
[1643764743677,0.1804,2769.4,2768.3,2.1083619]
[1643764743678,1.80587,2769.3,2768.3,2.1083619]
[1643764743878,1.80587,2769.3,2768.3,1.1083619]
[1643764744078,1.80587,2769.3,2768.3,2.1083619]
[1643764744279,0.90293,2769.4,2768.4,2.37787033]
[1643764744678,0.91884546,2769.2,2768.4,3.37787033]
[1643764745081,0.91884546,2769.2,2768.4,3.49775033]
[1643764745724,0.91884546,2769.2,2768.5,0.18012]
[1643764746123,0.91884546,2769.2,2768.4,3.49775033]
[1643764746325,0.91884546,2769.2,2768.4,1.3]
[1643764746524,1.82174546,2769.2,2768.4,1.3]
[1643764746829,1.82174546,2769.2,2768.3,2.4083619]
[1643764747624,1.82174546,2769.2,2768.3,1.4083619]
[1643764748843,0.85149187,2768.7,2768.3,1.1083619]
[1643764751497,0.90304,2768.8,2768.3,1.1083619]
[1643764751692,0.1806,2768.9,2768.4,2.15394569]
[1643764751890,1.80608,2769.0,2768.3,1.1083619]
[1643764753729,2.10608,2769.0,2768.3,1.1083619]
[1643764754125,0.81024695,2768.4,2768.3,1.1083619]
[1643764755531,0.99084695,2768.4,2768.3,1.1083619]
[1643764756533,0.99084695,2768.4,2767.4,3.1696]
[1643764756534,1.80664,2768.2,2767.4,3.1696]
[1643764756732,1.80664,2768.2,2767.4,2.9696]
[1643764756733,2.10664,2768.2,2767.4,2.9696]
[1643764757170,1.80664,2768.2,2767.4,2.9696]
[1643764757374,1.80664,2768.2,2767.3,7.47]
[1643764757775,1.80664,2768.2,2767.3,7.77]
[1643764758172,0.87521675,2767.9,2767.3,7.77]
[1643764758375,1.77854675,2767.9,2767.3,7.47]
[1643764758578,1.77854675,2767.9,2766.9,3.7924]
[1643764758579,2.07854675,2767.9,2766.9,3.7924]
[1643764759182,0.44272148,2767.6,2766.9,3.7924]
[1643764759382,0.44272148,2767.6,2766.6,4.6483]
[1643764759383,0.95498959,2767.2,2766.6,4.6483]
[1643764759587,0.95498959,2767.2,2766.3,3.84983311]
[1643764759787,0.95498959,2767.2,2765.8,3.18336477]
[1643764759788,0.65468046,2766.7,2765.9,3.0608]
[1643764759989,0.65468046,2766.7,2765.7,0.00165389]
[1643764760182,0.1807,2766.6,2765.4,0.90409052]
[1643764760382,1.1369,2766.6,2765.3,3.0733365]
[1643764760584,1.1369,2766.6,2765.4,0.18012]
[1643764760585,0.78887117,2766.3,2765.4,0.18012]
[1643764760834,0.78887117,2766.3,2765.3,0.0125365]
[1643764761437,1.3968,2766.6,2765.3,0.0125365]
[1643764761931,1.3968,2766.6,2765.4,0.18012]
[1643764762234,0.1807,2766.6,2765.4,0.18012]
[1643764762430,0.1807,2766.6,2765.5,0.90409052]
[1643764762834,0.1807,2766.6,2765.6,21.27012]
[1643764763041,0.1807,2767.0,2765.7,1.42409052]
[1643764763234,0.1807,2767.5,2765.9,0.01240687]
[1643764763434,0.1807,2767.5,2766.0,0.18012]
[1643764764039,1.08426,2767.5,2766.0,0.18012]
[1643764764702,3.21671755,2767.5,2766.0,0.18012]
[1643764765300,1.08426,2767.5,2766.0,0.18012]
[1643764766506,0.1807,2767.6,2766.6,0.01297693]
[1643764766711,0.005593,2767.7,2766.7,0.52]
[1643764767001,0.005593,2767.7,2766.7,1.12]
[1643764767203,0.005593,2767.7,2766.8,3.2677]
[1643764767401,0.005593,2767.7,2766.9,0.18012]
[1643764767602,0.005593,2767.7,2766.9,1.18012]
[1643764768005,0.1806,2768.3,2766.9,1.18012]
[1643764768844,0.1806,2768.4,2767.0,0.82]
[1643764769037,0.1806,2768.5,2767.0,0.82]
[1643764769243,0.1806,2768.5,2767.0,1.31316011]
[1643764769437,0.1806,2768.5,2767.0,0.82]
[1643764769641,0.1806,2768.5,2767.3,0.01254815]
[1643764769841,0.13819997,2768.6,2767.4,0.18012]
[1643764769842,0.31879997,2768.6,2767.4,0.18012]
[1643764770043,0.13819997,2768.6,2767.4,0.18012]
[1643764770241,1.04137997,2768.6,2767.4,0.18012]
[1643764771541,0.93448038,2768.3,2767.4,0.18012]
[1643764772174,1.11508038,2768.3,2767.4,0.18012]
[1643764772774,0.1806,2768.3,2767.4,0.18012]
[1643764773378,1.0839,2768.4,2767.4,0.18012]
[1643764773578,0.9033,2768.4,2767.4,0.18012]
[1643764774181,1.33086127,2768.4,2767.0,0.7006]
[1643764774386,0.4806,2768.3,2767.0,0.7006]
[1643764774584,2.59659627,2768.3,2767.0,0.7006]
[1643764774983,0.4806,2768.3,2767.0,0.7006]
[1643764775182,0.85175819,2768.2,2767.0,0.7006]
[1643764776027,0.85175819,2768.2,2767.0,0.1806]
[1643764776432,0.43293807,2768.0,2767.0,0.1806]
[1643764776634,2.28003498,2767.9,2766.9,1.18012]
[1643764776830,0.1806,2767.8,2766.9,1.18012]
[1643764777035,0.1806,2767.8,2766.8,7.9805]
[1643764777036,0.86927138,2767.6,2766.8,7.9805]
[1643764777229,0.86927138,2767.6,2766.6,0.01264826]
[1643764778032,0.1806,2767.8,2766.7,0.18012]
[1643764778334,0.90338,2768.1,2766.7,0.18012]
[1643764778335,0.1806,2768.0,2766.7,0.18012]
[1643764778531,0.90338,2768.1,2766.7,0.70012]
[1643764778532,0.1806,2768.1,2766.7,0.70012]
[1643764778730,0.1806,2768.1,2766.7,1.00012]
[1643764778931,0.1806,2768.1,2766.7,1.49328011]
[1643764779588,0.86840072,2768.0,2766.7,1.00012]
[1643764779785,0.86840072,2768.0,2766.8,0.1806]
[1643764779982,0.86840072,2768.0,2766.9,0.18012]
[1643764780385,0.86840072,2768.0,2766.9,0.13012]
[1643764781287,0.86840072,2768.0,2766.9,0.1807]
[1643764781493,2.99665425,2767.9,2766.9,0.1807]
[1643764781889,0.90338,2767.9,2766.7,1.0006]
[1643764782092,1.08398,2767.9,2766.7,1.12]
[1643764782586,1.08398,2767.9,2766.7,0.6]
[1643764782787,1.08398,2767.9,2766.7,0.3]
[1643764782987,1.08398,2767.9,2766.6,0.49324826]
[1643764783227,3.23402075,2767.9,2766.7,0.1807]
[1643764783428,1.08398,2767.9,2766.7,0.1807]
[1643764785632,1.08398,2767.9,2766.7,0.4807]
[1643764786232,2.28703822,2767.9,2766.7,0.4807]
[1643764786633,0.1806,2767.9,2766.7,0.4807]
[1643764787280,2.32346716,2767.9,2766.7,0.4807]
[1643764787678,2.32346716,2767.9,2766.7,0.1807]
[1643764787877,2.32346716,2767.9,2766.5,0.7307]
[1643764788578,2.30180884,2767.9,2766.5,0.4307]
[1643764788875,2.30180884,2767.9,2766.5,0.7307]
[1643764789078,0.79147966,2767.5,2766.5,0.7307]
[1643764789886,1.1342,2767.8,2766.5,0.7307]
[1643764790083,1.0342,2767.8,2766.5,1.63479052]
[1643764790386,1.0342,2767.8,2766.8,0.01255479]
[1643764790827,0.1807,2768.1,2766.8,0.01255479]
[1643764790828,0.1807,2768.1,2766.8,0.19325479]
[1643764791031,0.1806,2768.5,2767.0,0.90409052]
[1643764791226,0.1806,2768.5,2767.1,25.95409052]
[1643764791425,0.1806,2768.5,2767.2,0.49316011]
[1643764791726,0.1806,2768.5,2767.3,1.0007]
[1643764791727,1.52757373,2768.4,2767.3,1.0007]
[1643764791925,0.1806,2768.3,2767.3,1.0007]
[1643764792126,1.52757373,2768.2,2767.3,0.99953081]
[1643764792532,1.52757373,2768.1,2767.3,0.99953081]
[1643764792727,1.52757373,2768.0,2767.3,0.99953081]
[1643764792927,0.1806,2768.4,2767.3,0.81883081]
[1643764793128,0.1806,2768.4,2767.0,4.5189]
[1643764793129,0.40380885,2767.9,2767.0,4.5189]
[1643764793332,0.40380885,2767.9,2766.8,0.19325479]
[1643764793333,3.81127369,2767.8,2766.8,3.2432]
[1643764793529,0.78720839,2767.3,2766.8,3.2432]
[1643764793727,0.78720839,2767.3,2766.6,4.3679]
[1643764793928,2.82932624,2767.8,2766.5,0.1807]
[1643764794131,1.52782809,2767.7,2766.6,7.47]
[1643764794327,2.11761954,2767.6,2766.6,7.47]
[1643764794587,2.07676226,2767.6,2766.6,7.47]
[1643764794785,0.1806,2767.8,2766.6,7.47]
[1643764794786,1.52785652,2767.5,2766.6,7.47]
[1643764794987,0.6769719,2767.5,2766.6,7.47]
[1643764795386,2.58049353,2767.8,2766.7,1.19281362]
[1643764795387,0.1806,2767.8,2766.7,1.19281362]
[1643764795688,1.1789,2768.2,2766.7,1.49281362]
[1643764795689,0.1806,2768.1,2766.7,1.49281362]
[1643764795886,1.52767862,2768.0,2766.7,1.49281362]
[1643764796086,1.52767862,2768.0,2766.8,0.52]
[1643764796286,1.52767862,2768.0,2766.9,0.1807]
[1643764796486,0.85738915,2767.9,2766.9,0.1807]
[1643764796888,1.52769415,2767.8,2766.8,0.82]
[1643764797087,1.52769415,2767.8,2766.7,1.31211362]
[1643764797286,1.52769415,2768.0,2766.7,1.31211362]
[1643764797486,1.52769415,2767.7,2766.8,0.1807]
[1643764797692,1.70829415,2768.0,2766.8,0.1807]
[1643764797887,1.70829415,2768.0,2766.8,1.0007]
[1643764797888,1.52766386,2767.9,2766.8,1.0007]
[1643764798339,1.1789,2768.2,2767.0,0.90409052]
[1643764798536,3.65894471,2768.1,2767.1,0.52]
[1643764798735,1.52754119,2768.0,2767.1,0.52]
[1643764798935,1.52754119,2767.9,2766.7,2.91690414]